fUSD/lending_fUSD_20251226
["ID","MTS","AMOUNT","RATE_DAILY","PERIOD"]
[399852230,1766745047722,-5999.5376417,0.00039,88]
[399852231,1766745047731,-635.258,0.0003904,53]
[399852232,1766745047740,-150.0,0.00039094,7]
[399852233,1766745047750,-150.0,0.00039129,7]
[399852234,1766745047759,-150.0,0.00039306,7]
[399852235,1766745047769,-150.0,0.00039306,7]
[399852236,1766745047778,-151.0,0.00039422,120]
[399852237,1766745047788,-151.0,0.00039422,2]
[399852238,1766745047798,-151.0,0.00039422,2]
[399852239,1766745047807,-151.0,0.00039422,120]
[399852240,1766745047817,-151.0,0.00039422,120]
[399852241,1766745047827,-151.0,0.00039422,120]
[399852242,1766745047836,-151.0,0.00039422,120]
[399852243,1766745047847,-8192.66605497,0.00039422,2]
[399852244,1766745047857,-2921.04856858,0.00039422,2]
[399852245,1766745047866,-275.39,0.00039449,2]
[399852246,1766745047875,-150.0,0.00039458,7]
[399852247,1766745047885,-150.0,0.00039483,7]
[399852248,1766745047895,-1389.32,0.000396,14]
[399852249,1766745047905,-3662.08,0.000396,14]
[399852250,1766745047915,-759.46,0.00039654,2]
[399852251,1766745047924,-150.0,0.0003966,7]
[399852252,1766745047934,-150.0,0.0003966,7]
[399852253,1766745047943,-150.0,0.0003966,7]
[399852254,1766745047952,-150.0,0.0003966,7]
[399852255,1766745047962,-1327.0,0.00039661,2]
[399852256,1766745047971,-612.0,0.00039661,2]
[399852257,1766745047981,-150.0,0.00039837,7]
[399852258,1766745047991,-300.0,0.0003989,30]
[399852259,1766745048001,-500.0,0.00039892,2]
[399852260,1766745048011,-500.0,0.00039893,2]
[399852261,1766745048021,-500.0,0.00039894,2]
[399852262,1766745048031,-500.0,0.00039895,2]
[399852263,1766745048040,-500.0,0.00039896,2]
[399852264,1766745048050,-500.0,0.00039897,2]
[399852265,1766745048061,-500.0,0.00039898,2]
[399852266,1766745048071,-500.0,0.00039899,2]
[399852267,1766745048081,-169.0,0.000399,120]
[399852268,1766745048091,-500.0,0.000399,2]
[399852269,1766745048100,-373.773599,0.00039901,2]
[399852270,1766745048110,-150.0,0.00039944,7]
[399852271,1766745048120,-1000.0,0.00039999,30]
[399852272,1766745048129,-100000.0,0.0004,30]
[399852273,1766745048139,-1985.18,0.0004,120]
[399852274,1766745048149,-151.0,0.0004,120]
[399852275,1766745048159,-500.0,0.0004,120]
[399852276,1766745048168,-151.0,0.0004,120]
[399852277,1766745048178,-301.767671,0.0004,120]
[399852278,1766745048188,-301.767671,0.0004,120]
[399852279,1766745048199,-301.767671,0.0004,120]
[399852280,1766745048208,-301.767671,0.0004,120]
[399852281,1766745048218,-173.346932,0.0004,120]
[399852282,1766745048228,-173.346932,0.0004,120]
[399852283,1766745048237,-173.346932,0.0004,120]
[399852284,1766745048247,-173.346932,0.0004,120]
[399852285,1766745048257,-151.0,0.0004,120]
[399852286,1766745048267,-151.0,0.0004,120]
[399852287,1766745048426,-151.0,0.0004,120]
[399852288,1766745048436,-151.0,0.0004,120]
[399852289,1766745048447,-151.0,0.0004,120]
[399852290,1766745048457,-150.0,0.00040014,7]
[399852291,1766745048467,-150.0,0.00040065,7]
[399852292,1766745048478,-1263.0,0.00040156,2]
[399852293,1766745048487,-432.0,0.00040156,2]
[399852294,1766745048497,-150.0,0.00040191,7]
[399852295,1766745048507,-1000.0,0.00040216,15]
[399852296,1766745048516,-169.0,0.00040274,90]
[399852297,1766745048526,-1000.0,0.00040368,6]
[399852298,1766745048538,-150.0,0.00040368,7]
[399852299,1766745048549,-150.0,0.00040368,7]
[399852300,1766745048560,-150.0,0.00040368,7]
[399852301,1766745048570,-150.0,0.00040368,7]
[399852302,1766745048581,-332.3,0.00040372,6]
[399852303,1766745048590,-500.0,0.000405,120]
[399852304,1766745048603,-150.0,0.00040546,7]
[399852305,1766745048614,-37443.63,0.000406,14]
[399852306,1766745048624,-150.0,0.00040672,7]
[399852307,1766745048634,-1000.0,0.00040711,30]
[399852308,1766745048644,-300.0,0.00040712,50]
[399852309,1766745048655,-150.0,0.00040723,7]
[399852310,1766745048664,-150.0,0.00040793,7]
[399852311,1766745048674,-1000.0,0.00040868,30]
[399852312,1766745048684,-150.0,0.000409,7]
[399852313,1766745048694,-5001.49701118,0.000409,120]
[399852314,1766745048704,-1000.0,0.00040939,21]
[399852315,1766745048713,-300.0,0.00040986,60]
[399852316,1766745048723,-1000.0,0.00040999,30]
[399852317,1766745048733,-1000.0,0.00040999,30]
[399852318,1766745048743,-1000.0,0.00040999,30]
[399852319,1766745048753,-170.0,0.00041,90]
[399852320,1766745048762,-37636.52,0.00041,14]
[399852321,1766745048772,-10012.37654199,0.00041,120]
[399852322,1766745048781,-500.0,0.00041,120]
[399852323,1766745048791,-690.07,0.00041005,30]
[399852324,1766745048800,-1350.2,0.00041041,7]
[399852325,1766745048810,-500.0,0.00041054,14]
[399852326,1766745048820,-500.0,0.00041054,14]
[399852327,1766745048830,-500.0,0.00041054,14]
[399852328,1766745048840,-1000.0,0.00041067,22]
[399852329,1766745048850,-300.0,0.00041068,22]
[399852330,1766745048860,-150.0,0.00041077,7]
[399852331,1766745048870,-150.0,0.00041077,7]
[399852332,1766745048879,-150.0,0.00041077,7]
[399852333,1766745048890,-150.0,0.00041077,7]
[399852334,1766745048899,-300.261821,0.0004109,104]
[399852335,1766745048909,-1985.18,0.00041095,120]
[399852336,1766745048919,-1000.0,0.00041095,20]
[399852337,1766745048930,-259.21,0.00041096,120]
[399852338,1766745048939,-326.89961089,0.00041096,2]
[399852339,1766745048949,-300.0,0.00041096,70]
[399852340,1766745048959,-200.0,0.00041096,20]
[399852341,1766745048968,-200.0,0.00041096,20]
[399852342,1766745048978,-200.0,0.00041096,20]
[399852343,1766745048988,-500.0,0.00041096,30]
[399852344,1766745048998,-500.0,0.00041123,30]
[399852345,1766745049007,-500.0,0.00041151,30]
[399852346,1766745049017,-500.0,0.00041178,30]
[399852347,1766745049027,-1102.96524253,0.00041205,7]
[399852348,1766745049036,-597.89208137,0.00041206,30]
[399852349,1766745049046,-150.0,0.00041254,30]
[399852350,1766745049055,-150.0,0.00041279,30]
[399852351,1766745049064,-200.0,0.00041313,120]
[399852352,1766745049075,-1000.0,0.00041424,30]
[399852353,1766745049084,-150.0,0.00041431,30]
[399852354,1766745049094,-150.0,0.00041431,30]
[399852355,1766745049104,-500.0,0.000415,120]
[399852356,1766745049114,-150.0,0.00041523,120]
[399852357,1766745049124,-200.0,0.00041534,90]
[399852358,1766745049133,-150.0,0.00041608,30]
[399852359,1766745049154,-1350.2,0.0004164,7]
[399852360,1766745049167,-150.0,0.00041643,30]
[399852361,1766745049176,-10095.07,0.000417,30]
[399852362,1766745049190,-150.0,0.00041734,120]
[399852363,1766745049199,-1000.0,0.00041761,2]
[399852364,1766745049209,-155.145345,0.0004178,30]
[399852365,1766745049219,-708.64,0.0004178,30]
[399852366,1766745049229,-150.0,0.00041785,30]
[399852367,1766745049238,-178.57,0.00041863,30]
[399852368,1766745049248,-150.0,0.00041863,30]
[399852369,1766745049258,-554.37,0.00041863,30]
[399852370,1766745049267,-150.0,0.00041863,30]
[399852371,1766745049277,-150.0,0.00041863,30]
[399852372,1766745049286,-465.05,0.00041863,30]
[399852373,1766745049297,-150.0,0.00041863,30]
[399852374,1766745049307,-170.82,0.00041863,30]
[399852375,1766745049316,-150.0,0.00041863,30]
[399852376,1766745049326,-150.0,0.00041863,30]
[399852377,1766745049336,-554.37,0.00041863,30]
[399852378,1766745049346,-1220.66,0.00041863,30]
[399852379,1766745049356,-150.0,0.00041863,30]
[399852380,1766745049366,-465.05,0.00041863,30]
[399852381,1766745049376,-150.0,0.00041863,30]
[399852382,1766745049385,-170.82,0.00041863,30]
[399852383,1766745049394,-554.37,0.00041863,30]
[399852384,1766745049404,-150.0,0.00041863,30]
[399852385,1766745049413,-357.14,0.00041863,30]
[399852386,1766745049423,-150.0,0.00041863,30]
[399852387,1766745049433,-170.82,0.00041863,30]
[399852388,1766745049442,-1220.66,0.00041863,30]
[399852389,1766745049452,-150.0,0.00041863,30]
[399852390,1766745049461,-150.0,0.00041863,30]
[399852391,1766745049471,-465.05,0.00041863,30]
[399852392,1766745049486,-150.0,0.00041863,30]
[399852393,1766745049505,-554.37,0.00041863,30]
[399852394,1766745049520,-150.0,0.00041863,30]
[399852395,1766745049530,-170.82,0.00041863,30]
[399852396,1766745049543,-150.0,0.00041863,30]
[399852397,1766745049552,-1220.66,0.00041863,30]
[399852398,1766745049562,-465.05,0.00041863,30]
[399852399,1766745049571,-150.0,0.00041863,30]
[399852400,1766745049582,-150.0,0.00041863,30]
[399852401,1766745049591,-465.05,0.00041863,30]
[399852402,1766745049601,-554.37,0.00041863,30]
[399852403,1766745049615,-150.0,0.00041863,30]
[399852404,1766745049624,-150.0,0.00041863,30]
[399852405,1766745049634,-150.0,0.00041863,30]
[399852406,1766745049643,-150.0,0.00041863,30]
[399852407,1766745049653,-1220.66,0.00041863,30]
[399852408,1766745049662,-170.82,0.00041863,30]
[399852409,1766745049672,-554.37,0.00041863,30]
[399852410,1766745049681,-1220.66,0.00041863,30]
[399852411,1766745049691,-162.26,0.00041863,30]
[399852412,1766745049700,-150.77,0.00041863,30]
[399852413,1766745049709,-301.31,0.00041863,30]
[399852414,1766745049719,-465.05,0.00041863,30]
[399852415,1766745049728,-256.0,0.00041863,30]
[399852416,1766745049737,-1220.66,0.00041863,30]
[399852417,1766745049746,-554.37,0.00041863,30]
[399852418,1766745049755,-150.0,0.00041863,30]
[399852419,1766745049765,-150.0,0.00041863,30]
[399852420,1766745049774,-300.0,0.00041863,30]
[399852421,1766745049784,-465.05,0.00041863,30]
[399852422,1766745049794,-554.37,0.00041863,30]
[399852423,1766745049804,-1220.66,0.00041863,30]
[399852424,1766745049814,-465.05,0.00041863,30]
[399852425,1766745049824,-150.0,0.00041886,30]
[399852426,1766745049833,-2000.0,0.000419,2]
[399852427,1766745049842,-37443.63,0.000419,14]
[399852428,1766745049852,-150.0,0.00041946,120]
[399852429,1766745049862,-150.0,0.00041962,30]
[399852430,1766745049872,-1000.0,0.00041999,30]
[399852431,1766745049881,-1000.0,0.00041999,30]
[399852432,1766745049891,-1000.0,0.00041999,30]
[399852433,1766745049900,-150.0,0.00042,60]
[399852434,1766745049910,-150.0,0.00042,2]
[399852435,1766745049919,-500.0,0.00042,120]
[399852436,1766745049929,-198005.7828485,0.00042027,2]
[399852437,1766745049938,-151.0,0.00042027,14]
[399852438,1766745049947,-301.99188,0.00042027,120]
[399852439,1766745049957,-151.0,0.00042027,120]
[399852440,1766745049966,-151.0,0.00042027,120]
[399852441,1766745049975,-151.0,0.00042027,120]
[399852442,1766745049984,-8059.7533845,0.00042027,2]
[399852443,1766745049993,-151.0,0.00042027,7]
[399852444,1766745050003,-167.653019,0.00042027,120]
[399852445,1766745050012,-167.653019,0.00042027,120]
[399852446,1766745050023,-167.653019,0.00042027,120]
[399852447,1766745050037,-167.653019,0.00042027,120]
[399852448,1766745050046,-159.163995,0.00042027,120]
[399852449,1766745050056,-301.767671,0.00042027,120]
[399852450,1766745050065,-301.767671,0.00042027,120]
[399852451,1766745050075,-301.767671,0.00042027,120]
[399852452,1766745050085,-301.767671,0.00042027,120]
[399852453,1766745050095,-173.346932,0.00042027,120]
[399852454,1766745050104,-173.346932,0.00042027,120]
[399852455,1766745050114,-173.346932,0.00042027,120]
[399852456,1766745050123,-173.346932,0.00042027,120]
[399852457,1766745050133,-151.0,0.00042027,120]
[399852458,1766745050142,-151.0,0.00042027,120]
[399852459,1766745050152,-151.0,0.00042027,120]
[399852460,1766745050164,-151.0,0.00042027,120]
[399852461,1766745050176,-201.591482,0.00042027,120]
[399852462,1766745050185,-150.0,0.00042027,60]
[399852463,1766745050195,-202.97863194,0.00042055,60]
[399852464,1766745050206,-150.0,0.00042139,30]
[399852465,1766745050216,-156.720569,0.00042158,120]
[399852466,1766745050225,-1985.18,0.00042191,120]
[399852467,1766745050235,-1000.0,0.00042199,14]
[399852468,1766745050245,-37636.52,0.000422,14]
[399852469,1766745050255,-1000.0,0.00042238,7]
[399852470,1766745050264,-200.0,0.00042238,7]
[399852471,1766745050274,-207.4,0.00042238,7]
[399852472,1766745050283,-215.0738,0.00042238,7]
[399852473,1766745050293,-223.0315306,0.00042238,7]
[399852474,1766745050303,-231.28369723,0.00042238,7]
[399852475,1766745050313,-239.84119403,0.00042238,7]
[399852476,1766745050322,-248.71531821,0.00042238,7]
[399852477,1766745050332,-257.91778498,0.00042238,7]
[399852478,1766745050341,-267.46074303,0.00042238,7]
[399852479,1766745050351,-277.35679052,0.00042238,7]
[399852480,1766745050360,-287.61899177,0.00042238,7]
[399852481,1766745050369,-298.26089446,0.00042238,7]
[399852482,1766745050379,-440.6311978,0.00042238,7]
[399852483,1766745050388,-1350.2,0.00042239,7]
[399852484,1766745050397,-10000.0,0.00042272,2]
[399852485,1766745050407,-1000.0,0.00042277,30]
[399852486,1766745050416,-151.17267518,0.00042278,60]
[399852487,1766745050427,-150.0,0.00042316,30]
[399852488,1766745050436,-1000.0,0.00042318,30]
[399852489,1766745050446,-151.67792003,0.00042328,2]
[399852490,1766745050455,-505.85873594,0.00042328,2]
[399852491,1766745050464,-151.0,0.00042365,2]
[399852492,1766745050475,-202.650544,0.00042365,2]
[399852493,1766745050484,-151.0,0.00042365,120]
[399852494,1766745050493,-262.508363,0.00042365,120]
[399852495,1766745050502,-293.916,0.00042365,120]
[399852496,1766745050511,-151.01229717,0.00042365,120]
[399852497,1766745050521,-620.0,0.00042365,120]
[399852498,1766745050530,-642.94,0.00042365,120]
[399852499,1766745050544,-207.4,0.00042365,120]
[399852500,1766745050554,-243.19376256,0.00042365,120]
[399852501,1766745050564,-1000.0,0.00042365,30]
[399852502,1766745050573,-600.0,0.00042365,120]
[399852503,1766745050585,-600.0,0.00042365,120]
[399852504,1766745050595,-630.92249643,0.00042365,120]
[399852505,1766745050603,-211.13623721,0.00042365,120]
[399852506,1766745050614,-6888.0,0.00042365,120]
[399852507,1766745050624,-500.0,0.00042365,120]
[399852508,1766745050633,-7142.856,0.00042365,120]
[399852509,1766745050642,-500.0,0.00042365,120]
[399852510,1766745050651,-7407.141672,0.00042365,120]
[399852511,1766745050661,-500.0,0.00042365,120]
[399852512,1766745050671,-7681.20591386,0.00042365,120]
[399852513,1766745050680,-500.0,0.00042365,120]
[399852514,1766745050689,-151.0,0.00042365,120]
[399852515,1766745050699,-7965.41053268,0.00042365,120]
[399852516,1766745050708,-151.0,0.00042365,120]
[399852517,1766745050718,-500.0,0.00042365,120]
[399852518,1766745050727,-500.0,0.00042365,120]
[399852519,1766745050736,-250.0,0.00042365,120]
[399852520,1766745050745,-500.0,0.00042365,120]
[399852521,1766745050755,-156.587,0.00042365,120]
[399852522,1766745050764,-250.0,0.00042365,120]
[399852523,1766745050773,-8260.13072239,0.00042365,120]
[399852524,1766745050782,-500.0,0.00042365,120]
[399852525,1766745050791,-151.0,0.00042365,120]
[399852526,1766745050801,-518.5,0.00042365,120]
[399852527,1766745050810,-250.0,0.00042365,120]
[399852528,1766745050819,-500.0,0.00042365,120]
[399852529,1766745050828,-500.0,0.00042365,120]
[399852530,1766745050880,-250.0,0.00042365,120]
[399852531,1766745050889,-162.380719,0.00042365,120]
[399852532,1766745050899,-250.0,0.00042365,120]
[399852533,1766745050909,-8565.75555911,0.00042365,120]
[399852534,1766745050918,-500.0,0.00042365,120]
[399852535,1766745050928,-151.0,0.00042365,120]
[399852536,1766745050937,-537.6845,0.00042365,120]
[399852537,1766745050947,-250.0,0.00042365,120]
[399852538,1766745050956,-151.0,0.00042365,120]
[399852539,1766745050966,-500.0,0.00042365,120]
[399852540,1766745050975,-500.0,0.00042365,120]
[399852541,1766745050984,-168.3888056,0.00042365,120]
[399852542,1766745050993,-250.0,0.00042365,120]
[399852543,1766745051003,-8882.6885148,0.00042365,120]
[399852544,1766745051012,-250.0,0.00042365,120]
[399852545,1766745051021,-500.0,0.00042365,120]
[399852546,1766745051031,-151.0,0.00042365,120]
[399852547,1766745051040,-250.0,0.00042365,120]
[399852548,1766745051049,-500.0,0.00042365,120]
[399852549,1766745051058,-500.0,0.00042365,120]
[399852550,1766745051067,-151.0,0.00042365,120]
[399852551,1766745051076,-322.96477587,0.00042365,120]
[399852552,1766745051087,-250.0,0.00042365,120]
[399852553,1766745051096,-9211.34798985,0.00042365,120]
[399852554,1766745051105,-250.0,0.00042365,120]
[399852555,1766745051114,-557.5788265,0.00042365,120]
[399852556,1766745051123,-151.0,0.00042365,120]
[399852557,1766745051133,-500.0,0.00042365,120]
[399852558,1766745051142,-250.0,0.00042365,120]
[399852559,1766745051151,-500.0,0.00042365,120]
[399852560,1766745051160,-151.0,0.00042365,120]
[399852561,1766745051169,-500.0,0.00042365,120]
[399852562,1766745051179,-250.0,0.00042365,120]
[399852563,1766745051188,-250.0,0.00042365,120]
[399852564,1766745051197,-151.0,0.00042365,120]
[399852565,1766745051206,-578.20924308,0.00042365,120]
[399852566,1766745051217,-500.0,0.00042365,120]
[399852567,1766745051226,-250.0,0.00042365,120]
[399852568,1766745051235,-500.0,0.00042365,120]
[399852569,1766745051244,-500.0,0.00042365,120]
[399852570,1766745051253,-151.0,0.00042365,120]
[399852571,1766745051263,-250.0,0.00042365,120]
[399852572,1766745051272,-250.0,0.00042365,120]
[399852573,1766745051282,-578.20924308,0.00042365,120]
[399852574,1766745051291,-151.0,0.00042365,120]
[399852575,1766745051300,-500.0,0.00042365,120]
[399852576,1766745051309,-500.0,0.00042365,120]
[399852577,1766745051319,-250.0,0.00042365,120]
[399852578,1766745051328,-500.0,0.00042365,120]
[399852579,1766745051338,-151.0,0.00042365,120]
[399852580,1766745051347,-250.0,0.00042365,120]
[399852581,1766745051356,-250.0,0.00042365,120]
[399852582,1766745051366,-500.0,0.00042365,120]
[399852583,1766745051375,-151.0,0.00042365,120]
[399852584,1766745051385,-186.42719691,0.00042365,120]
[399852585,1766745051395,-500.0,0.00042365,120]
[399852586,1766745051404,-250.0,0.00042365,120]
[399852587,1766745051413,-250.0,0.00042365,120]
[399852588,1766745051423,-250.0,0.00042365,120]
[399852589,1766745051433,-500.0,0.00042365,120]
[399852590,1766745051442,-151.0,0.00042365,120]
[399852591,1766745051452,-500.0,0.00042365,120]
[399852592,1766745051461,-250.0,0.00042365,120]
[399852593,1766745051470,-151.0,0.00042365,120]
[399852594,1766745051479,-250.0,0.00042365,120]
[399852595,1766745051489,-543.0,0.00042365,120]
[399852596,1766745051498,-250.0,0.00042365,120]
[399852597,1766745051508,-500.0,0.00042365,120]
[399852598,1766745051517,-151.0,0.00042365,120]
[399852599,1766745051526,-500.0,0.00042365,120]
[399852600,1766745051539,-250.0,0.00042365,120]
[399852601,1766745051548,-151.0,0.00042365,120]
[399852602,1766745051557,-250.0,0.00042365,120]
[399852603,1766745051566,-250.0,0.00042365,120]
[399852604,1766745051575,-500.0,0.00042365,120]
[399852605,1766745051585,-151.0,0.00042365,120]
[399852606,1766745051594,-500.0,0.00042365,120]
[399852607,1766745051605,-151.0,0.00042365,120]
[399852608,1766745051614,-250.0,0.00042365,120]
[399852609,1766745051624,-250.0,0.00042365,120]
[399852610,1766745051633,-500.0,0.00042365,120]
[399852611,1766745051642,-152.90144373,0.00042365,120]
[399852612,1766745051651,-500.0,0.00042365,120]
[399852613,1766745051660,-500.0,0.00042365,120]
[399852614,1766745051669,-520.0,0.00042365,120]
[399852615,1766745051679,-151.0,0.00042365,120]
[399852616,1766745051688,-250.0,0.00042365,120]
[399852617,1766745051698,-250.0,0.00042365,120]
[399852618,1766745051706,-500.0,0.00042365,120]
[399852619,1766745051716,-500.0,0.00042365,120]
[399852620,1766745051725,-352.11821613,0.00042365,120]
[399852621,1766745051735,-539.24,0.00042365,120]
[399852622,1766745051744,-151.0,0.00042365,120]
[399852623,1766745051753,-261.09616689,0.00042365,120]
[399852624,1766745051762,-500.0,0.00042365,120]
[399852625,1766745051771,-250.0,0.00042365,120]
[399852626,1766745051781,-500.0,0.00042365,120]
[399852627,1766745051790,-559.19188,0.00042365,120]
[399852628,1766745051799,-151.0,0.00042365,120]
[399852629,1766745051808,-500.0,0.00042365,120]
[399852630,1766745051817,-500.0,0.00042365,120]
[399852631,1766745051827,-250.0,0.00042365,120]
[399852632,1766745051837,-500.0,0.00042365,120]
[399852633,1766745051846,-579.88197956,0.00042365,120]
[399852634,1766745051855,-151.0,0.00042365,120]
[399852635,1766745051864,-500.0,0.00042365,120]
[399852636,1766745051874,-500.0,0.00042365,120]
[399852637,1766745051883,-250.0,0.00042365,120]
[399852638,1766745051892,-250.0,0.00042365,120]
[399852639,1766745051902,-500.0,0.00042365,120]
[399852640,1766745051911,-601.3376128,0.00042365,120]
[399852641,1766745051920,-151.0,0.00042365,120]
[399852642,1766745051930,-500.0,0.00042365,120]
[399852643,1766745051939,-250.0,0.00042365,120]
[399852644,1766745051948,-250.0,0.00042365,120]
[399852645,1766745051957,-500.0,0.00042365,120]
[399852646,1766745051967,-623.58710448,0.00042365,120]
[399852647,1766745051976,-151.0,0.00042365,120]
[399852648,1766745051985,-500.0,0.00042365,120]
[399852649,1766745051994,-263.8761222,0.00042365,120]
[399852650,1766745052003,-500.0,0.00042365,120]
[399852651,1766745052013,-250.0,0.00042365,120]
[399852652,1766745052022,-646.65982734,0.00042365,120]
[399852653,1766745052031,-151.0,0.00042365,120]
[399852654,1766745052040,-500.0,0.00042365,120]
[399852655,1766745052049,-160.0,0.00042365,120]
[399852656,1766745052059,-414.0,0.00042365,120]
[399852657,1766745052068,-500.0,0.00042365,120]
[399852658,1766745052078,-250.0,0.00042365,120]
[399852659,1766745052087,-151.0,0.00042365,120]
[399852660,1766745052096,-670.58624095,0.00042365,120]
[399852661,1766745052105,-166.59578157,0.00042365,120]
[399852662,1766745052115,-500.0,0.00042365,120]
[399852663,1766745052125,-250.0,0.00042365,120]
[399852664,1766745052135,-500.0,0.00042365,120]
[399852665,1766745052144,-429.318,0.00042365,120]
[399852666,1766745052154,-151.0,0.00042365,120]
[399852667,1766745052163,-695.39793187,0.00042365,120]
[399852668,1766745052173,-500.0,0.00042365,120]
[399852669,1766745052182,-250.0,0.00042365,120]
[399852670,1766745052192,-500.0,0.00042365,120]
[399852671,1766745052202,-445.202766,0.00042365,120]
[399852672,1766745052211,-300.0,0.00042365,120]
[399852673,1766745052221,-732.29652609,0.00042365,120]
[399852674,1766745052230,-500.0,0.00042365,120]
[399852675,1766745052241,-500.0,0.00042365,120]
[399852676,1766745052250,-461.67526834,0.00042365,120]
[399852677,1766745052260,-250.0,0.00042365,120]
[399852678,1766745052269,-311.1,0.00042365,120]
[399852679,1766745052278,-500.0,0.00042365,120]
[399852680,1766745052287,-500.0,0.00042365,120]
[399852681,1766745052296,-478.75725327,0.00042365,120]
[399852682,1766745052305,-322.6107,0.00042365,120]
[399852683,1766745052315,-500.0,0.00042365,120]
[399852684,1766745052324,-496.47127164,0.00042365,120]
[399852685,1766745052334,-334.5472959,0.00042365,120]
[399852686,1766745052344,-250.0,0.00042365,120]
[399852687,1766745052354,-514.84070869,0.00042365,120]
[399852688,1766745052363,-250.0,0.00042365,120]
[399852689,1766745052373,-346.92554585,0.00042365,120]
[399852690,1766745052383,-250.0,0.00042365,120]
[399852691,1766745052392,-533.88981491,0.00042365,120]
[399852692,1766745052402,-250.0,0.00042365,120]
[399852693,1766745052412,-220.53001405,0.00042365,120]
[399852694,1766745052421,-359.76179104,0.00042365,120]
[399852695,1766745052430,-250.0,0.00042365,120]
[399852696,1766745052440,-151.0,0.00042365,120]
[399852697,1766745052450,-553.64373807,0.00042365,120]
[399852698,1766745052459,-250.0,0.00042365,120]
[399852699,1766745052469,-373.07297731,0.00042365,120]
[399852700,1766745052478,-152.22167503,0.00042365,120]
[399852701,1766745052487,-574.12855637,0.00042365,120]
[399852702,1766745052496,-250.0,0.00042365,120]
[399852703,1766745052506,-250.0,0.00042365,120]
[399852704,1766745052515,-386.87667747,0.00042365,120]
[399852705,1766745052524,-595.37131296,0.00042365,120]
[399852706,1766745052535,-250.0,0.00042365,120]
[399852707,1766745052546,-500.0,0.00042365,120]
[399852708,1766745052556,-250.0,0.00042365,120]
[399852709,1766745052565,-401.19111454,0.00042365,120]
[399852710,1766745052575,-250.0,0.00042365,120]
[399852711,1766745052586,-617.40005154,0.00042365,120]
[399852712,1766745052595,-500.0,0.00042365,120]
[399852713,1766745052606,-250.0,0.00042365,120]
[399852714,1766745052616,-416.03518578,0.00042365,120]
[399852715,1766745052625,-250.0,0.00042365,120]
[399852716,1766745052634,-640.24385345,0.00042365,120]
[399852717,1766745052644,-500.0,0.00042365,120]
[399852718,1766745052653,-250.0,0.00042365,120]
[399852719,1766745052662,-431.42848765,0.00042365,120]
[399852720,1766745052671,-250.0,0.00042365,120]
[399852721,1766745052681,-663.93287602,0.00042365,120]
[399852722,1766745052691,-500.0,0.00042365,120]
[399852723,1766745052700,-250.0,0.00042365,120]
[399852724,1766745052710,-447.3913417,0.00042365,120]
[399852725,1766745052720,-1502.12311134,0.00042365,120]
[399852726,1766745052729,-250.0,0.00042365,120]
[399852727,1766745052739,-688.49839244,0.00042365,120]
[399852728,1766745052750,-500.0,0.00042365,120]
[399852729,1766745052760,-250.0,0.00042365,120]